[Event "GER-ch Youth U12 2019"]
[Site "Willingen"]
[Date "2019.06.11"]
[Round "4.11"]
[White "Zweigait, Leon"]
[Black "Hoffmann, Kay"]
[Result "1-0"]
[ECO "A04"]
[WhiteElo "1474"]
[BlackElo "1433"]
[Annotator "NA"]
[PlyCount "109"]
[EventDate "2019.06.07"]
[EventType "swiss"]
[EventRounds "9"]
[EventCountry "GER"]
[SourceTitle "playchess.com"]
[Source "ChessBase"]
[SourceQuality "1"]
[TimeControl "40/4500+30:900+30"]

1. Nf3 {[%emt 0:00:00]} g6 {[%emt 0:00:00]} 2. c4 {[%emt 0:00:00]} Bg7 {[%emt 0:00:00]} 3. Nc3 {[%emt 0:00:00]} e5 {[%emt 0:00:00]} 4. e3 {[%emt 0:00:00]} Nc6 {[%emt 0:00:00]} 5. d4 {[%emt 0:00:00]} exd4 {[%emt 0:00:00]} 6. exd4 {[%emt 0:00:00]} d6 {[%emt 0:00:00]} 7. Be3 {[%emt 0:00:00]} Nge7 {[%emt 0:00:00]} 8. Bd3 {[%emt 0:00:00]} O-O {[%emt 0:00:00]} 9. O-O {[%emt 0:00:00]} Bf5 {[%emt 0:00:00]} 10. a3 {[%emt 0:00:00]} Bxd3 {[%emt 0:04:38]} 11. Qxd3 {[%emt 0:00:00]} d5 {[%emt 0:01:55]} 12. c5 {[%emt 0:00:00]} Nf5 {[%emt 0:02:13]} 13. b4 {[%emt 0:00:00]} Qd7 {[%emt 0:03:35]} 14. Rfb1 {[%emt 0:00:00]} Nd8 {[%emt 0:07:03]} 15. b5 {[%emt 0:00:00]} Ne6 {[%emt 0:04:19]} 16. a4 {[%emt 0:00:00]} Rfb8 {[%emt 0:10:14]} 17. Ra2 {[%emt 0:00:00]} Qd8 {[%emt 0:03:06]} 18. Rab2 {[%emt 0:00:00]} Nxc5 {[%emt 0:27:59]} 19. dxc5 {[%emt 0:00:00]} d4 {[%emt 0:00:06]} 20. Bxd4 {[%emt 0:02:47]} Nxd4 {[%emt 0:01:05]} 21. Rb4 {[%emt 0:02:22]} Ne6 {[%emt 0:02:25]} 22. Qe3 {[%emt 0:01:52]} Bxc3 {[%emt 0:03:57]} 23. Qxc3 {[%emt 0:00:10]} Qe7 {[%emt 0:00:13]} 24. Rc4 {[%emt 0:00:44]} Rd8 {[%emt 0:00:27]} 25. Re1 {[%emt 0:00:24]} Qd7 {[%emt 0:02:16]} 26. Qf6 {[%emt 0:01:10]} Rf8 {[%emt 0:02:35]} 27. Ne5 {[%emt 0:03:10]} Qd2 {[%emt 0:00:36]} 28. Kf1 {[%emt 0:01:29]} Qg5 {[%emt 0:00:24]} 29. Qxg5 {[%emt 0:01:38]} Nxg5 {[%emt 0:00:05]} 30. c6 {[%emt 0:00:24]} b6 {[%emt 0:00:04]} 31. Nd7 {[%emt 0:00:41]} Rfe8 {[%emt 0:00:08]} 32. Rxe8+ {[%emt 0:00:09]} Rxe8 {[%emt 0:00:05]} 33. Nf6+ {[%emt 0:00:06]} Kf8 {[%emt 0:00:10]} 34. Nxe8 {[%emt 0:00:01]} Kxe8 {[%emt 0:00:07]} 35. Ke2 {[%emt 0:00:24]} Ke7 {[%emt 0:00:08]} 36. Ke3 {[%emt 0:00:06]} Ne6 {[%emt 0:00:24]} 37. Ke4 {[%emt 0:01:22]} Kd6 {[%emt 0:00:16]} 38. f4 {[%emt 0:00:18]} f5+ {[%emt 0:00:21]} 39. Kd3 {[%emt 0:00:52]} Kd5 {[%emt 0:00:33]} 40. Kc3 {[%emt 0:00:55]} Kd6 {[%emt 0:02:22]} 41. Kd3 {[%emt 0:16:53]} Kd5 {[%emt 0:15:45]} 42. g3 {[%emt 0:02:06]} Nc5+ {[%emt 0:01:42]} 43. Kc3 {[%emt 0:00:13]} Ne4+ {[%emt 0:01:13]} 44. Kb4 {[%emt 0:00:10]} Nd6 {[%emt 0:01:19]} 45. Rc1 {[%emt 0:00:13]} Ke6 {[%emt 0:01:45]} 46. Re1+ {[%emt 0:00:45]} Ne4 {[%emt 0:00:10]} 47. Kc4 {[%emt 0:00:33]} Kf6 {[%emt 0:01:56]} 48. Rxe4 {[%emt 0:01:10]} fxe4 {[%emt 0:00:07]} 49. g4 {[%emt 0:00:09]} g5 {[%emt 0:02:02]} 50. f5 {[%emt 0:00:42]} Ke5 {[%emt 0:00:11]} 51. Kb3 {[%emt 0:02:27]} Kd5 {[%emt 0:01:28]} 52. Kc3 {[%emt 0:00:29]} Ke5 {[%emt 0:00:36]} 53. Kc4 {[%emt 0:00:16]} h5 {[%emt 0:02:02]} 54. h3 {[%emt 0:00:37]} h4 {[%emt 0:00:05]} 55. Kb3 {[%emt 0:01:06] normal} 1-0

[Event "GER-ch Youth U12 2019"]
[Site "Willingen"]
[Date "2019.06.11"]
[Round "4.12"]
[White "Deuer, Marius"]
[Black "Kageler, Anton Paul"]
[Result "1-0"]
[ECO "B76"]
[WhiteElo "1961"]
[BlackElo "1563"]
[Annotator "NA"]
[PlyCount "70"]
[EventDate "2019.06.07"]
[EventType "swiss"]
[EventRounds "9"]
[EventCountry "GER"]
[SourceTitle "playchess.com"]
[Source "ChessBase"]
[SourceQuality "1"]
[TimeControl "40/4500+30:900+30"]

1. e4 {[%emt 0:00:00]} c5 {[%emt 0:00:00]} 2. Nf3 {[%emt 0:00:00]} d6 {[%emt 0:00:00]} 3. d4 {[%emt 0:00:00]} cxd4 {[%emt 0:00:00]} 4. Nxd4 {[%emt 0:00:00]} Nf6 {[%emt 0:00:00]} 5. Nc3 {[%emt 0:00:00]} g6 {[%emt 0:00:00]} 6. f3 {[%emt 0:00:00]} Bg7 {[%emt 0:00:00]} 7. Be3 {[%emt 0:00:00]} O-O {[%emt 0:00:00]} 8. Qd2 {[%emt 0:00:00]} Nc6 {[%emt 0:00:00]} 9. O-O-O {[%emt 0:00:00]} d5 {[%emt 0:00:00]} 10. Qe1 {[%emt 0:00:00]} e5 {[%emt 0:00:00]} 11. Nxc6 {[%emt 0:00:00]} bxc6 {[%emt 0:00:00]} 12. exd5 {[%emt 0:00:00]} Nxd5 {[%emt 0:00:00]} 13. Bc4 {[%emt 0:00:00]} Be6 {[%emt 0:00:00]} 14. Ne4 {[%emt 0:00:00]} Qc7 {[%emt 0:00:00]} 15. Bc5 {[%emt 0:00:00]} Rfd8 {[%emt 0:00:00]} 16. Qh4 {[%emt 0:00:00]} Bf5 {[%emt 0:12:35]} 17. Rhe1 {[%emt 0:02:24]} Rab8 {[%emt 0:03:02]} 18. g4 {[%emt 0:06:55]} Bxe4 {[%emt 0:03:35]} 19. fxe4 {[%emt 0:04:24]} Nf4 {[%emt 0:01:51]} 20. Qe7 {[%emt 0:04:58]} Qxe7 {[%emt 0:08:57]} 21. Bxe7 {[%emt 0:01:12]} Rd4 {[%emt 0:18:32]} 22. Rxd4 {[%emt 0:01:01]} exd4 {[%emt 0:01:29]} 23. Bd6 {[%emt 0:01:47]} Ng2 {[%emt 0:04:07]} 24. Bxf7+ {[%emt 0:02:14]} Kxf7 {[%emt 0:08:03]} 25. Rf1+ {[%emt 0:00:47]} Ke6 {[%emt 0:00:54]} 26. Bxb8 {[%emt 0:01:07]} Bh6+ {[%emt 0:00:42]} 27. Kb1 {[%emt 0:00:45]} Ne3 {[%emt 0:00:31]} 28. Rg1 {[%emt 0:03:09]} Bg5 {[%emt 0:03:27]} 29. Bxa7 {[%emt 0:01:52]} Ke5 {[%emt 0:00:16]} 30. h4 {[%emt 0:01:32]} Bxh4 {[%emt 0:03:28]} 31. c3 {[%emt 0:02:06]} Kxe4 {[%emt 0:02:18]} 32. Bxd4 {[%emt 0:01:36]} Nd5 {[%emt 0:01:18]} 33. Rh1 {[%emt 0:02:28]} g5 {[%emt 0:01:16]} 34. Rf1 {[%emt 0:00:58]} Nf4 {[%emt 0:01:27] normal} 35. a4 {[%emt 0:08:32]} Kd5 {[%emt 0:01:19] normal} 1-0

[Event "GER-ch Youth U12 2019"]
[Site "Willingen"]
[Date "2019.06.11"]
[Round "4.13"]
[White "Krueger, Arthur"]
[Black "Hecht, Jonas Christian"]
[Result "1/2-1/2"]
[ECO "B07"]
[WhiteElo "1613"]
[BlackElo "1726"]
[Annotator "NA"]
[PlyCount "91"]
[EventDate "2019.06.07"]
[EventType "swiss"]
[EventRounds "9"]
[EventCountry "GER"]
[SourceTitle "playchess.com"]
[Source "ChessBase"]
[SourceQuality "1"]
[TimeControl "40/4500+30:900+30"]

1. e4 {[%emt 0:00:00]} d6 {[%emt 0:00:00]} 2. d4 {[%emt 0:00:00]} Nf6 {[%emt 0:00:00]} 3. Nc3 {[%emt 0:00:00]} e5 {[%emt 0:00:00]} 4. dxe5 {[%emt 0:00:00]} dxe5 {[%emt 0:00:00]} 5. Qxd8+ {[%emt 0:00:00]} Kxd8 {[%emt 0:00:00]} 6. Nf3 {[%emt 0:00:00]} Bd6 {[%emt 0:00:00]} 7. Bc4 {[%emt 0:00:00]} Ke7 {[%emt 0:00:00]} 8. Bg5 {[%emt 0:00:00]} c6 {[%emt 0:00:00]} 9. O-O-O {[%emt 0:00:00]} Nbd7 {[%emt 0:00:00]} 10. Bxf7 {[%emt 0:00:00]} Bb4 {[%emt 0:01:27]} 11. Bc4 {[%emt 0:03:12]} Bxc3 12. bxc3 {[%emt 0:00:16]} h6 {[%emt 0:01:28]} 13. Bxf6+ {[%emt 0:02:12]} gxf6 {[%emt 0:02:33]} 14. Nh4 {[%emt 0:02:14]} Nf8 {[%emt 0:03:04]} 15. Rd2 {[%emt 0:09:14]} b5 {[%emt 0:06:28]} 16. Bb3 {[%emt 0:01:28]} a5 {[%emt 0:03:29]} 17. a3 {[%emt 0:06:16]} Rh7 {[%emt 0:07:21]} 18. Rhd1 {[%emt 0:04:18]} Ra7 {[%emt 0:02:18]} 19. c4 {[%emt 0:09:40]} a4 {[%emt 0:05:26]} 20. Ba2 {[%emt 0:01:37]} Be6 {[%emt 0:01:48]} 21. Kb2 {[%emt 0:08:02]} bxc4 {[%emt 0:01:59]} 22. Nf5+ {[%emt 0:01:15]} Bxf5 {[%emt 0:01:54]} 23. exf5 {[%emt 0:00:38]} Rg7 {[%emt 0:01:18]} 24. f3 {[%emt 0:05:37]} Rb7+ {[%emt 0:03:28]} 25. Kc3 {[%emt 0:01:34]} Nd7 {[%emt 0:01:22]} 26. h4 {[%emt 0:01:50]} Nb6 {[%emt 0:04:29]} 27. Bxc4 {[%emt 0:00:20]} Nxc4 {[%emt 0:01:26]} 28. Kxc4 {[%emt 0:00:06]} Rg8 {[%emt 0:00:13]} 29. Kc5 {[%emt 0:04:50]} Rc8 {[%emt 0:00:18]} 30. c4 {[%emt 0:03:14]} Rb3 {[%emt 0:08:31]} 31. Rd7+ {[%emt 0:03:09]} Ke8 {[%emt 0:02:47]} 32. Rh7 {[%emt 0:02:33]} Rcb8 {[%emt 0:00:29]} 33. Rh8+ {[%emt 0:01:01]} Ke7 {[%emt 0:00:06]} 34. Rxb8 {[%emt 0:01:28]} Rxb8 {[%emt 0:00:06]} 35. Kxc6 {[%emt 0:00:52]} Rb2 {[%emt 0:00:46]} 36. Rd7+ {[%emt 0:06:19]} Ke8 {[%emt 0:00:23]} 37. Ra7 {[%emt 0:00:30]} Rxg2 {[%emt 0:00:50]} 38. Rxa4 {[%emt 0:00:19]} Rf2 {[%emt 0:00:13]} 39. c5 {[%emt 0:00:59]} Rxf3 {[%emt 0:00:44]} 40. Kb7 {[%emt 0:01:06]} Rb3+ {[%emt 0:00:48]} 41. Rb4 {[%emt 0:15:51]} Rxa3 {[%emt 0:15:06]} 42. c6 {[%emt 0:00:26]} Rc3 {[%emt 0:00:04]} 43. Rb1 {[%emt 0:06:43]} Kd8 {[%emt 0:00:52]} 44. Rb4 {[%emt 0:00:00]} Ke7 {[%emt 0:00:00]} 45. Rb1 {[%emt 0:00:00]} Kd8 {[%emt 0:00:00]} 46. Rb4 {[%emt 0:00:00] normal} 1/2-1/2

[Event "GER-ch Youth U12 2019"]
[Site "Willingen"]
[Date "2019.06.11"]
[Round "4.14"]
[White "Kempe, Caius Emilian"]
[Black "Hagenbeck-Huebert, Jan"]
[Result "1-0"]
[ECO "D35"]
[WhiteElo "1766"]
[BlackElo "1574"]
[Annotator "NA"]
[PlyCount "143"]
[EventDate "2019.06.07"]
[EventType "swiss"]
[EventRounds "9"]
[EventCountry "GER"]
[SourceTitle "playchess.com"]
[Source "ChessBase"]
[SourceQuality "1"]
[TimeControl "40/4500+30:900+30"]

1. d4 {[%emt 0:00:00]} d5 {[%emt 0:00:00]} 2. c4 {[%emt 0:00:00]} e6 {[%emt 0:00:00]} 3. Nc3 {[%emt 0:00:00]} Nf6 {[%emt 0:00:00]} 4. cxd5 {[%emt 0:00:00]} exd5 {[%emt 0:00:00]} 5. Bg5 {[%emt 0:00:00]} Nbd7 {[%emt 0:00:00]} 6. e3 {[%emt 0:00:00]} c6 {[%emt 0:00:00]} 7. Bd3 {[%emt 0:00:00]} Bd6 {[%emt 0:00:00]} 8. Qc2 {[%emt 0:00:00]} h6 {[%emt 0:00:00]} 9. Bh4 {[%emt 0:00:00]} Be7 {[%emt 0:00:00]} 10. Nf3 {[%emt 0:00:00]} Nb6 {[%emt 0:00:00]} 11. O-O {[%emt 0:00:00]} O-O {[%emt 0:00:54]} 12. Rab1 {[%emt 0:00:00]} Be6 {[%emt 0:05:20]} 13. Ne2 {[%emt 0:02:16]} Bg4 {[%emt 0:02:54]} 14. Ne5 {[%emt 0:00:29]} Be6 {[%emt 0:02:40]} 15. Nf4 {[%emt 0:00:52]} Nbd7 {[%emt 0:05:42]} 16. Nxe6 {[%emt 0:03:13]} fxe6 {[%emt 0:00:19]} 17. Ng6 {[%emt 0:00:09]} Rf7 {[%emt 0:01:23]} 18. Nxe7+ {[%emt 0:00:26]} Qxe7 {[%emt 0:00:57]} 19. b4 {[%emt 0:05:56]} Rc8 {[%emt 0:01:54]} 20. Rfc1 {[%emt 0:02:35]} g5 {[%emt 0:04:17]} 21. Bg3 {[%emt 0:00:29]} Rff8 {[%emt 0:04:23]} 22. h3 {[%emt 0:02:36]} Nh5 {[%emt 0:02:05]} 23. Bh2 {[%emt 0:00:11]} Rf6 {[%emt 0:01:20]} 24. Be2 {[%emt 0:01:57]} Qf7 {[%emt 0:02:47]} 25. Bd1 {[%emt 0:03:17]} Qe8 {[%emt 0:05:38]} 26. Bg4 {[%emt 0:02:18]} Ng7 {[%emt 0:01:25]} 27. Qb2 {[%emt 0:02:23]} Nb6 {[%emt 0:03:34]} 28. Be2 {[%emt 0:00:47]} Qf8 {[%emt 0:04:46]} 29. Bf1 {[%emt 0:00:55]} Rf5 {[%emt 0:03:10]} 30. Bd3 {[%emt 0:00:45]} Rf7 {[%emt 0:00:38]} 31. Qe2 {[%emt 0:01:33]} Qe7 {[%emt 0:01:40]} 32. Rc2 {[%emt 0:04:11]} Rcf8 {[%emt 0:01:29]} 33. Qe1 {[%emt 0:00:13]} Nf5 {[%emt 0:00:52]} 34. b5 {[%emt 0:01:47]} cxb5 {[%emt 0:05:00]} 35. Bxb5 {[%emt 0:03:47]} Nd6 {[%emt 0:01:04]} 36. Bd3 {[%emt 0:00:21]} Nbc4 {[%emt 0:01:48]} 37. Qb4 {[%emt 0:05:03]} Rd8 {[%emt 0:07:27]} 38. Rbc1 {[%emt 0:07:13]} Rd7 {[%emt 0:03:59]} 39. Bg3 {[%emt 0:05:25]} Qd8 {[%emt 0:03:13]} 40. a4 {[%emt 0:07:19]} Qb6 {[%emt 0:01:33]} 41. Bxd6 {[%emt 0:19:37]} Qxd6 {[%emt 0:16:57]} 42. Qe1 {[%emt 0:02:40]} Nb6 {[%emt 0:02:13]} 43. a5 {[%emt 0:00:16]} Na8 {[%emt 0:00:28]} 44. Rc8+ {[%emt 0:02:59]} Rd8 {[%emt 0:00:32]} 45. a6 {[%emt 0:03:27]} Nb6 {[%emt 0:05:16]} 46. axb7 {[%emt 0:00:33]} Rxb7 {[%emt 0:00:36]} 47. R8c6 {[%emt 0:03:11]} Qe7 {[%emt 0:01:17]} 48. Ba6 {[%emt 0:02:08]} Rbd7 {[%emt 0:00:37]} 49. Qd2 {[%emt 0:01:28]} Rd6 {[%emt 0:00:34]} 50. R6c2 {[%emt 0:00:53]} Qe8 {[%emt 0:01:40]} 51. Qb4 {[%emt 0:00:54]} Qa4 {[%emt 0:00:00]} 52. Qxa4 {[%emt 0:00:00]} Nxa4 {[%emt 0:00:00]} 53. Bb5 {[%emt 0:00:00]} Nb6 {[%emt 0:00:00]} 54. Ra1 {[%emt 0:00:00]} Nc8 {[%emt 0:00:00]} 55. Rc7 {[%emt 0:00:00]} Rf8 {[%emt 0:00:00]} 56. Bd7 {[%emt 0:00:00]} Nb6 {[%emt 0:00:00]} 57. Raxa7 {[%emt 0:00:00]} Nxd7 {[%emt 0:00:00]} 58. Rxd7 {[%emt 0:00:00]} Rxd7 {[%emt 0:00:00]} 59. Rxd7 {[%emt 0:00:00]} Rf7 {[%emt 0:00:00]} 60. Rxf7 {[%emt 0:00:00]} Kxf7 {[%emt 0:00:00]} 61. g4 {[%emt 0:00:00]} Kf6 {[%emt 0:00:00]} 62. f4 {[%emt 0:00:00]} h5 {[%emt 0:00:00]} 63. Kf2 {[%emt 0:00:00]} hxg4 {[%emt 0:00:00]} 64. hxg4 {[%emt 0:00:00]} gxf4 {[%emt 0:00:00]} 65. exf4 {[%emt 0:00:00]} Kg6 {[%emt 0:00:00]} 66. Ke3 {[%emt 0:00:00]} Kf6 {[%emt 0:00:00]} 67. Kd3 {[%emt 0:00:00]} Kg6 {[%emt 0:00:00]} 68. Kc3 {[%emt 0:00:00]} Kf6 {[%emt 0:00:00]} 69. Kb4 {[%emt 0:00:00]} Kg6 {[%emt 0:00:00]} 70. Kc5 {[%emt 0:00:00]} Kf7 {[%emt 0:00:00]} 71. Kd6 {[%emt 0:00:00]} Kf6 {[%emt 0:00:00]} 72. g5+ {[%emt 0:00:00] normal} 1-0

[Event "GER-ch Youth U12 2019"]
[Site "Willingen"]
[Date "2019.06.11"]
[Round "4.15"]
[White "Reichmann, Felix"]
[Black "Gerdes, Jannes"]
[Result "1-0"]
[ECO "A20"]
[WhiteElo "1725"]
[BlackElo "1517"]
[Annotator "NA"]
[PlyCount "75"]
[EventDate "2019.06.07"]
[EventType "swiss"]
[EventRounds "9"]
[EventCountry "GER"]
[SourceTitle "playchess.com"]
[Source "ChessBase"]
[SourceQuality "1"]
[TimeControl "40/4500+30:900+30"]

1. c4 {[%emt 0:00:00]} e5 {[%emt 0:00:00]} 2. g3 {[%emt 0:00:00]} Nf6 {[%emt 0:00:00]} 3. Bg2 {[%emt 0:00:00]} c6 {[%emt 0:00:00]} 4. Nf3 {[%emt 0:00:00]} e4 {[%emt 0:00:00]} 5. Nd4 {[%emt 0:00:00]} Qb6 {[%emt 0:00:00]} 6. Nb3 {[%emt 0:00:00]} a5 {[%emt 0:00:00]} 7. d3 {[%emt 0:00:00]} Bb4+ {[%emt 0:00:00]} 8. Nc3 {[%emt 0:00:00]} d5 {[%emt 0:00:00]} 9. O-O {[%emt 0:00:00]} a4 {[%emt 0:00:00]} 10. Nd2 {[%emt 0:00:00]} e3 {[%emt 0:00:00]} 11. fxe3 {[%emt 0:00:00]} Qxe3+ 12. Kh1 {[%emt 0:00:00]} Ng4 {[%emt 0:00:00]} 13. Qe1 {[%emt 0:00:00]} O-O {[%emt 0:00:00]} 14. Nf3 {[%emt 0:00:00]} Qa7 {[%emt 0:00:00]} 15. cxd5 {[%emt 0:00:00]} cxd5 {[%emt 0:00:00]} 16. d4 {[%emt 0:00:00]} Nc6 {[%emt 0:00:00]} 17. Qd1 {[%emt 0:00:00]} Be6 {[%emt 0:00:00]} 18. h3 {[%emt 0:00:00]} Nf6 {[%emt 0:00:00]} 19. Kh2 {[%emt 0:03:36]} a3 {[%emt 0:00:00]} 20. Qd3 {[%emt 0:02:58]} axb2 {[%emt 0:00:00]} 21. Bxb2 {[%emt 0:00:06]} h6 {[%emt 0:00:00]} 22. a3 {[%emt 0:04:18]} Be7 {[%emt 0:01:05]} 23. e3 {[%emt 0:16:40]} Qb8 {[%emt 0:00:27]} 24. Ne2 {[%emt 0:01:43]} Ne4 {[%emt 0:01:40]} 25. Ne5 {[%emt 0:01:41]} Bd6 {[%emt 0:00:49]} 26. Bxe4 {[%emt 0:00:54]} dxe4 {[%emt 0:00:08]} 27. Qxe4 {[%emt 0:00:10]} Nxe5 {[%emt 0:00:11]} 28. dxe5 {[%emt 0:00:09]} Be7 {[%emt 0:00:26]} 29. Nd4 {[%emt 0:03:00]} Bc4 {[%emt 0:00:12]} 30. Rfc1 {[%emt 0:00:14]} b5 {[%emt 0:00:33]} 31. Nf5 {[%emt 0:00:37]} Bc5 {[%emt 0:00:42]} 32. Qg4 {[%emt 0:00:29]} g6 {[%emt 0:01:03]} 33. Nxh6+ {[%emt 0:00:14]} Kh7 {[%emt 0:00:13]} 34. Qh4 {[%emt 0:00:46]} Kg7 {[%emt 0:00:25]} 35. Ng4 {[%emt 0:00:24]} f6 {[%emt 0:02:43]} 36. exf6+ {[%emt 0:03:16]} Kf7 {[%emt 0:00:22]} 37. Ne5+ {[%emt 0:00:29]} Ke8 {[%emt 0:02:51]} 38. Qe4 {[%emt 0:00:19] normal} 1-0

[Event "GER-ch Youth U12 2019"]
[Site "Willingen"]
[Date "2019.06.12"]
[Round "5.1"]
[White "Foerster-Yialamas, Lucas"]
[Black "Kluehs, Gustaf"]
[Result "1/2-1/2"]
[ECO "B33"]
[WhiteElo "1981"]
[BlackElo "1705"]
[Annotator "NA"]
[PlyCount "54"]
[EventDate "2019.06.07"]
[EventType "swiss"]
[EventRounds "9"]
[EventCountry "GER"]
[SourceTitle "playchess.com"]
[Source "ChessBase"]
[SourceQuality "1"]
[TimeControl "40/4500+30:900+30"]

1. e4 {[%emt 0:00:00]} c5 {[%emt 0:00:00]} 2. Nf3 {[%emt 0:00:00]} Nc6 {[%emt 0:00:00]} 3. d4 {[%emt 0:00:00]} cxd4 {[%emt 0:00:00]} 4. Nxd4 {[%emt 0:00:00]} Nf6 {[%emt 0:00:00]} 5. Nc3 {[%emt 0:00:00]} e5 {[%emt 0:00:00]} 6. Ndb5 {[%emt 0:00:00]} d6 {[%emt 0:00:00]} 7. Bg5 {[%emt 0:00:00]} a6 {[%emt 0:00:00]} 8. Na3 {[%emt 0:00:00]} b5 {[%emt 0:00:00]} 9. Nd5 {[%emt 0:00:00]} Be7 {[%emt 0:00:00]} 10. Bxf6 {[%emt 0:00:00]} Bxf6 {[%emt 0:00:00]} 11. c3 {[%emt 0:00:00]} Bg5 {[%emt 0:00:00]} 12. Nc2 {[%emt 0:00:00]} O-O {[%emt 0:00:00]} 13. a4 {[%emt 0:00:00]} bxa4 {[%emt 0:00:00]} 14. Rxa4 {[%emt 0:00:00]} a5 {[%emt 0:00:00]} 15. Bc4 {[%emt 0:00:00]} Rb8 {[%emt 0:00:00]} 16. b3 {[%emt 0:00:00]} Kh8 {[%emt 0:00:00]} 17. Nce3 {[%emt 0:00:00]} Bxe3 {[%emt 0:00:00]} 18. Nxe3 {[%emt 0:00:00]} f5 {[%emt 0:00:00]} 19. exf5 {[%emt 0:00:00]} Ne7 {[%emt 0:07:17]} 20. g4 {[%emt 0:00:00]} Bb7 {[%emt 0:01:53]} 21. Nd5 {[%emt 0:02:42]} Nxd5 {[%emt 0:02:50]} 22. Bxd5 {[%emt 0:00:08]} Qc7 {[%emt 0:00:26]} 23. Bxb7 {[%emt 0:06:37]} Qxc3+ {[%emt 0:00:25]} 24. Qd2 {[%emt 0:01:43]} Qxd2+ {[%emt 0:00:25]} 25. Kxd2 {[%emt 0:00:07]} Rxb7 {[%emt 0:00:02]} 26. Rb1 {[%emt 0:00:37]} Rb5 {[%emt 0:01:08]} 27. Rc4 {[%emt 0:02:11] normal} g6 {[%emt 0:01:37] normal} 1/2-1/2

[Event "GER-ch Youth U12 2019"]
[Site "Willingen"]
[Date "2019.06.12"]
[Round "5.2"]
[White "Sosa Costa, Leonardo"]
[Black "Bakiev, Diyor"]
[Result "1/2-1/2"]
[ECO "B13"]
[WhiteElo "1945"]
[BlackElo "2123"]
[Annotator "NA"]
[PlyCount "65"]
[EventDate "2019.06.07"]
[EventType "swiss"]
[EventRounds "9"]
[EventCountry "GER"]
[SourceTitle "playchess.com"]
[Source "ChessBase"]
[SourceQuality "1"]
[TimeControl "40/4500+30:900+30"]

1. e4 {[%emt 0:00:00]} c6 {[%emt 0:00:00]} 2. d4 {[%emt 0:00:00]} d5 {[%emt 0:00:00]} 3. exd5 {[%emt 0:00:00]} cxd5 {[%emt 0:00:00]} 4. Bd3 {[%emt 0:00:00]} Nc6 {[%emt 0:00:00]} 5. c3 {[%emt 0:00:00]} g6 {[%emt 0:00:00]} 6. Nf3 {[%emt 0:00:00]} Bg7 {[%emt 0:00:00]} 7. Bf4 {[%emt 0:00:00]} Nf6 {[%emt 0:00:00]} 8. h3 {[%emt 0:00:00]} O-O {[%emt 0:00:00]} 9. Nbd2 {[%emt 0:00:00]} Bf5 {[%emt 0:00:00]} 10. Bxf5 {[%emt 0:01:51]} gxf5 {[%emt 0:00:00]} 11. O-O {[%emt 0:08:24]} Ne4 {[%emt 0:00:00]} 12. Qe2 {[%emt 0:06:23]} e6 {[%emt 0:00:00]} 13. Bh2 {[%emt 0:04:42]} Bh6 {[%emt 0:00:00]} 14. Nxe4 {[%emt 0:02:47]} fxe4 {[%emt 0:02:42]} 15. Ne5 {[%emt 0:00:08]} Nxe5 {[%emt 0:03:05]} 16. Bxe5 {[%emt 0:01:02]} f5 {[%emt 0:05:43]} 17. f3 {[%emt 0:05:44]} Qg5 {[%emt 0:05:20]} 18. f4 {[%emt 0:05:41]} Qg6 {[%emt 0:02:33]} 19. Rae1 {[%emt 0:01:11]} Bg7 {[%emt 0:01:18]} 20. Bxg7 {[%emt 0:00:56]} Kxg7 {[%emt 0:00:55]} 21. Qb5 {[%emt 0:01:20]} Rf7 {[%emt 0:01:50]} 22. Re3 {[%emt 0:08:44]} Rg8 {[%emt 0:03:18]} 23. Rf2 {[%emt 0:04:31]} Kh8 {[%emt 0:00:56]} 24. Qe2 {[%emt 0:00:39]} Rfg7 {[%emt 0:00:36]} 25. Kh2 {[%emt 0:00:14]} h5 {[%emt 0:00:33]} 26. Kh1 {[%emt 0:02:52]} h4 {[%emt 0:01:09]} 27. Qf1 {[%emt 0:01:37]} Qh5 {[%emt 0:01:02]} 28. Rfe2 {[%emt 0:01:12]} b5 {[%emt 0:18:36]} 29. a3 {[%emt 0:03:59]} a6 {[%emt 0:00:43]} 30. Qe1 {[%emt 0:01:48]} Rg3 {[%emt 0:01:59]} 31. Rxg3 {[%emt 0:02:22]} Rxg3 {[%emt 0:00:07]} 32. Re3 {[%emt 0:03:11]} Rxe3 {[%emt 0:12:55]} 33. Qxe3 {[%emt 0:00:05] normal} 1/2-1/2

[Event "GER-ch Youth U12 2019"]
[Site "Willingen"]
[Date "2019.06.12"]
[Round "5.3"]
[White "Freude, Max"]
[Black "von Mettenheim, Johannes"]
[Result "1-0"]
[ECO "B13"]
[WhiteElo "1707"]
[BlackElo "1757"]
[Annotator "NA"]
[PlyCount "60"]
[EventDate "2019.06.07"]
[EventType "swiss"]
[EventRounds "9"]
[EventCountry "GER"]
[SourceTitle "playchess.com"]
[Source "ChessBase"]
[SourceQuality "1"]
[TimeControl "40/4500+30:900+30"]

1. e4 {[%emt 0:00:00]} c6 {[%emt 0:00:00]} 2. d4 {[%emt 0:00:00]} d5 {[%emt 0:00:00]} 3. exd5 {[%emt 0:00:00]} cxd5 {[%emt 0:00:00]} 4. Bd3 {[%emt 0:00:00]} Nc6 {[%emt 0:00:00]} 5. c3 {[%emt 0:00:00]} Nf6 {[%emt 0:00:00]} 6. Bf4 {[%emt 0:00:00]} Bg4 {[%emt 0:00:00]} 7. Qb3 {[%emt 0:00:00]} e5 {[%emt 0:00:00]} 8. h3 {[%emt 0:00:00]} Qe7 {[%emt 0:00:00]} 9. hxg4 {[%emt 0:00:00]} exf4+ {[%emt 0:00:00]} 10. Kf1 {[%emt 0:00:00]} Nxg4 {[%emt 0:00:00]} 11. Nd2 {[%emt 0:00:00]} Qd7 {[%emt 0:01:41]} 12. Re1+ {[%emt 0:00:00]} Be7 {[%emt 0:04:16]} 13. Nh3 {[%emt 0:00:00]} O-O-O {[%emt 0:00:28]} 14. Qc2 {[%emt 0:07:46]} g6 {[%emt 0:01:21]} 15. b4 {[%emt 0:03:39]} Bh4 {[%emt 0:06:44]} 16. Nf3 {[%emt 0:08:07]} Bf6 {[%emt 0:15:34]} 17. a4 {[%emt 0:15:49]} Kb8 {[%emt 0:04:58]} 18. a5 {[%emt 0:03:55]} Rc8 {[%emt 0:00:26]} 19. Qa4 {[%emt 0:03:38]} Qc7 {[%emt 0:03:27]} 20. Ra1 {[%emt 0:05:05]} Nd8 {[%emt 0:07:10]} 21. Ra3 {[%emt 0:02:20]} Ne6 {[%emt 0:02:05]} 22. b5 {[%emt 0:02:27]} Qd7 {[%emt 0:03:15]} 23. Ke2 {[%emt 0:05:48]} Rhe8 {[%emt 0:00:53]} 24. Kd2 {[%emt 0:00:32]} h6 {[%emt 0:01:10]} 25. Rb1 {[%emt 0:03:20]} Ng5 {[%emt 0:00:46]} 26. Nfxg5 {[%emt 0:05:22]} Bxg5 {[%emt 0:00:41]} 27. b6 {[%emt 0:01:28]} Qxa4 {[%emt 0:00:41]} 28. bxa7+ {[%emt 0:00:10]} Kxa7 {[%emt 0:00:18]} 29. Rxa4 {[%emt 0:00:06]} f3+ {[%emt 0:13:09]} 30. Nxg5 {[%emt 0:01:58]} hxg5 {[%emt 0:00:01] normal} 1-0